Workbook

Sheet NET ZERO
B3: NET ZERO VERSION | D3: The UK government wants to get the whole country to "net zero" by 2050.
D4: But how will this happen?
D6: Will it be through personal choices at the household level?
D7: Or are large-scale, top-down measures more likely?
D8: Or could it be a bit of both?
D9: This calculator applies realistic values to your choices and allows you to compare various measures.
D11: You will find there are four kinds of things that can be done to reduce the UK emissions
E12: changes in personal behaviour | K12: like using a bicycle for short journeys
E13: installing green household equipment | K13: like solar panels
E14: investing in green initiatives | K14: buying shares in low-carbon technologies like forests or wind farms
E15: letting government and industry sort it out | K15: like offshore wind-farms
A23: Saving the Planet one goal at a time?
B25: The little red triangles hide comments. | D25: One thing before you start: Save a new copy: Save As under your own name
B26: Hover over them to find more information. | D26: Off you go!

Sheet THE HOME
A2: NET ZERO | D2: GREEN LIFE AND LIVING
F4: Two sorts of actions
C7: THESE ARE FREE | H7: THESE COST SOMETHING AT FIRST
C8: AND MAY SAVE MONEY | H8: BUT SAVE MONEY LATER | T8: COOL | U8: TRUE | V8: =IF(COOL=TRUE,0.2,0) -> 0.2 | W8: =IF(COOL=TRUE,-50,0) -> -50
D10: Lower the thermostat 2° | I10: Insulate the loft
T11: THMIN | U11: TRUE | V11: =IF(THMIN=TRUE,0.1,0) -> 0.1 | W11: =IF(THMIN=TRUE,-10,0) -> -10
D12: Take 3-minute showers | I12: Insulate the walls
T13: ONYER | U13: FALSE | V13: =IF(ONYER=TRUE,0.12,0) -> 0 | W13: =IF(ONYER=TRUE,-10,0) -> 0 | X13: 0.012
D14: Use a bike for short journeys | I14: Install solar panels
T15: HOLS | U15: FALSE | V15: =IF(HOLS=TRUE,0.3,0) -> 0 | W15: =IF(HOLS=TRUE,-200,0) -> 0 | X15: 0.03
D16: Holiday closer to Britain | I16: Install a heat-pump
T17: NOFLY | U17: FALSE | V17: =IF(NOFLY=TRUE,(AVEM/1000),0) -> 0 | W17: =IF(NOFLY=TRUE,0,0) -> 0 | X17: 0.06
D18: Don't fly at all | I18: Get an electric car
T19: MISTEAKS | U19: TRUE | V19: =IF(MISTEAKS=TRUE,0.9,0) -> 0.9 | W19: =IF(MISTEAKS=TRUE,-100,0) -> -100 | X19: 0.09
D20: Halve meat and dairy consumption
H21: =CASH -> 4000 | I21: Annual cost over 5 years | T21: FRUGAL | U21: TRUE | V21: =IF(FRUGAL=TRUE,0.6,0) -> 0.6 | W21: =IF(FRUGAL=TRUE,-500,0) -> -500 | X21: 0.06
D22: Buy much less stuff | G22: £ | I22: (A negative value shows money saved)
D23: Re-use, repair, recycle | T23: SUMBEH | U23: =SUM(V11:V21) -> 1.6 | X23: =SUM(W8:W21) -> -660 | Y23: COSTBEH
T25: WALLSY | U25: FALSE | V25: =IF(WALLSY=TRUE,0.06,0) -> 0 | W25: =IF(WALLSY=TRUE,4000,0) -> 0 | X25: 0.06
G26: These choices saved | H26: =TOTHOM -> 2.8 | I26: tonnes of greenhouse gas (CO2e) a year, per person | T26: LOFTY | U26: TRUE | V26: =IF(LOFTY=TRUE,0.2,0) -> 0.2 | W26: =IF(LOFTY=TRUE,300,0) -> 300 | X26: 0.02
T27: PHV | U27: TRUE | V27: =IF(PHV=TRUE,0.3,0) -> 0.3 | W27: =IF(PHV=TRUE,5000,0) -> 5000 | X27: 0.03
T29: HP | U29: FALSE | V29: =IF(HP=TRUE,0.7,0) -> 0 | W29: =IF(HP=TRUE,10000*BROOMS/3,0) -> 0 | X29: 0.07
T31: EV | U31: TRUE | V31: =IF(EV=TRUE,0.5,0) -> 0.5 | W31: =IF(EV=TRUE,18000,0) -> 18000 | X31: 0.5
T33: SUMONS | U33: =SUM(V24:V31) -> 1 | X33: =SUM(W26:W31) -> 23300 | Y33: COSTONS
T34: TOTHOM | V34: =SUM(V8:V32) -> 2.8 | W34: =SUM(W8:W21)+(SUM(W24:W31))/5 -> 4000 | Y34: CASH
W35: =CASH/TOTHOM -> 1428.571429 | X35: £/t
G42: YOUR CHOICES | H42: BACKGROUND
F43: GRAPHPOS | G43: =UKAVG-SAVED -> 7.7 | H43: =10.5 -> 10.5 | I43: UKAVG
F44: GRAPHNEG | G44: =OFFTONNES+INVTONNES -> -2.6

Sheet INVESTMENTS
A3: NET ZERO | C3: INVESTING IN THE LOW-CARBON FUTURE
C6: Long-term investments in low-carbon initiatives have a permanent effect on emissions.
C7: In the short term, they can be regarded as 'negative emissions' or 'negatonnes'.
C8: They can be bought for about £500 per negatonne of CO2e.
C9: Perhaps you don't do this already, but try the effect of investing up to £5000 over 5 years.
C10: (So that would be £1000 in the pink box)
B12: £ | C12: 1300 | G12: =-BUCKS/500 -> -2.6
H13: 'negatonnes' of CO2e per person-year
C25: A curious thing about these investments is that, although they cost something at the beginning,
D26: they usually generate a positive return,so you can keep investing.
E43: =UKAVG -> 10.5 | F43: =UKAVG -> 10.5
D44: FSETS | E44: =INVTONNES -> -2.6

Sheet GOVERNMENT
A2: NET ZERO | C2: WHAT COULD THE GOVERNMENT AND INDUSTRY DO?
C3: They could do things that affect everybody
M4: BIG
C5: You can try two several things here
C6: Look at the five classes of dcarbonisation measures and enter values you think are 'politically reasonable' right now.
C7: Then go up to the level suggested in red
C8: This shows what the government's advisors are recommending by 2030. Try this first
C9: But if you keep clicking you will eventually reach the the 'Greta Thunberg' levels.
C11: %
C12: 10 | E12: First, the government can improve efficiency
E13: across the whole economy, up to 20% by 2030
C16: 55 | E16: Then the energy supply
E17: can be 'decarbonised', up to 60%
C20: 15 | E20: But what about all the imports?
E21: They are slowly decarbonising, but 'carbon tariffs' could be imposed 20%
C24: 25 | E24: Then livestock products can be reduced
E25: and replaced with nutritional equivalents, 25%
C28: 15 | E28: The land released by livestock reduction can be used for carbon sequestration
E29: for up to 10% 0f UK land | T29: =UKAVG-MASS -> 7.4215 | U29: =UKAVG -> 10.5
S30: NEGT | T30: =-TREES*0.08 -> -1.2
E33: These choices saved | F33: =(UKAVG*0.37*CEFF/100)+(UKAVG*0.4*ENLOW/100)+(UKAVG*0.2*IMPLOW/100)+(UKAVG*0.1*STOCKLOW/100)+(UKAVG*0.7*TREES/100)+INVTONNES/2 -> 3.0785 | H33: tonnes per year | K33: and would cost about | L33: =28000*(CEFF*0.02/100+ENLOW*0.03/100+IMPLOW*0.01/100-STOCKLOW*0.025/100) -> 385 | M33: £ per year in extra tax

Sheet TOGETHER
B2: NET ZERO | F2: PUTTING IT ALL TOGETHER | R2: =700/67 -> 10.44776119
M3: =10.5-SAVED-MASS+NEGT+INVTONNES -> 0.8215 | N3: Overall carbon balance
F4: This is your result: | N4: in 'personal' tonnes per year
F5: Did you get to zero? | N5: The national average minus your choices so far
F7: You had quite a range of choices.
Z8: Personal behaviour | AA8: =100*SUMBEH/(UKAVG-BALANCE) -> 16.53148732
F9: Which kinds of choices had the biggest effect? | Z9: Home technology | AA9: =100*SUMONS/(UKAVG-BALANCE) -> 10.33217957
Z10: Green investment | AA10: =100*(-INVTONNES/(UKAVG-BALANCE)) -> 26.86366689
F11: Were they realistic? | Z11: Government and industry | AA11: =100*MASS/(UKAVG-BALANCE) -> 31.80761482
F14: What would they cost every year, | Z14: Personal behaviour | AA14: =100*SUMBEH/(QUICK-BALANCE) -> 16.23565251
F15: In the first five years? | Z15: Home technology | AA15: =100*SUMONS/(QUICK-BALANCE) -> 10.14728282
E16: £ | F16: =CASH+BUCKS+TAX*INCGROUP/28000 -> 5685 | H16: Would that be worth it? | Z16: Green investment | AA16: =100*(-INVTONNES/(QUICK-BALANCE)) -> 26.38293533
Z17: Government and industry | AA17: =100*MASS/(QUICK-BALANCE) -> 31.23841016
F18: If you want to go back
F19: and see what else you might have done,
F20: save this version ('Save As' and give it a name)
F21: …and start again, many times as you like
F23: You might feel that your personal behaviour has made a big contribution.
F24: After you have completed the questions on the 'YOU' tab, a further pie-chart will give you a revised set of proportions.
W28: =UKAVG-SAVED-MASS -> 4.6215 | X28: =UKAVG -> 10.5
W29: =NEGT+FSETS -> -3.8

Sheet YOU
B2: NET ZERO | D2: YOUR OWN FOOTPRINT
D3: The calculator assumes you have an average UK personal footprint of about 10.7 tonnes of CO2e per year. But what if you don't?
D4: Finding out a person's or a household's real carbon footprint can be very time-consuming.
D5: Fortunately we have a short-cut with just five questions! Rough answers are good enough here.
C6: NB THERE IS A RECOGNISED SPIN-BUTTON GLITCH IN EXCEL. SOMETIMES THE 'DOWN' BUTTONS GIVE AN 'UP' RESPONSE. IF YOU FIND THIS, JUST WRITE IN THE NUMBER DIRECTLY
D8: How many bedrooms are in the reference house?
D9: 3
D10: Put in any serious room that could be a bedroom, even if it isn't. The UK average is 3. Think like an estate agent.
D11: If you have other houses that are not rented out or lived in permanently, add their bedrooms too | V11: =ARE*0.0268 -> 2.5728 | Y11: =V11/OCCUP -> 1.02912 | Z11: =BROOMS/OCCUP -> 1.2
V12: =(476+ARE*6.8)/1000 -> 1.1288 | Y12: =V12/OCCUP -> 0.45152 | Z12: =2.4*EXP(-0.1*OCCUP) -> 1.869121879
D13: How many people over 12 live in your house? | V13: =SUM(V11:V12) -> 3.7016 | Y13: =V13/OCCUP -> 1.48064
D14: 2.5 | U14: FRACTOCC | V14: 7
D15: Give the closest number over a typical year. Fractions allow for intermittemt occupancy, as for students. The UK average is 2.4 | Y15: =(2*BROOMS)^2 -> 36
D17: How would you rate your whole household in terms of what you've got to spend, after tax and benefits?
P21: 3 | U21: SPEND | V21: 3
U22: INCGROUP | V22: =IF(SPEND=1,13000,IF(SPEND=2,20000,IF(SPEND=3,28000,IF(SPEND=7,35000,IF(SPEND=6,45000,IF(SPEND=5,80000,IF(SPEND=4,150000))))))) -> 28000
U23: AVOCC | V23: 2.4
U24: AVEM | V24: =FLYING*0.25*1.9 -> 950
D25: How much flying do you do? | G25: Miles per typical year | U25: EMEST | V25: =(INCGROUP*0.0002+4.5)*2.4/2.4*EXP(0.15*(AVOCC-OCCUP)) -> 9.94963059
D26: 2000 | U26: DIET | V26: 1
D28: How would you describe your diet? Choose the closest option | U28: FOOD | V28: =IF(DIET=1,0,IF(DIET=3,0.3,IF(DIET=4,-0.3,IF(DIET=5,-0.8,IF(DIET=2,-1))))) -> 0
V35: =(INCGROUP*0.0002+4.5)*2.4/2.4*EXP(0.15*(AVOCC-OCCUP))-(EMEST*0.12)+((ARE*0.026)+(475+ARE*6.7)/1000)/OCCUP-0.475+AVEM/1000+FOOD -> 10.67635492 | W35: QUICK
D36: On this basis your baseline annual footprint is likely to be | J36: =QUICK -> 10.67635492 | K36: tonnes per year
D38: Your choices and investments give a result of | J38: =J36-10.8 -> -0.1236450808 | K38: tonnes per year | V38: =2*BROOMS^2+(6*BROOMS)+60 -> 96 | W38: ARE
D39: Did you get to zero? If not, what else could you do?
V41: Personal behaviour | W41: =100*SUMBEH/(QUICK-BALANCE)-(AVEM/1000)+FOOD -> 15.28565251
V42: Home technology | W42: =100*SUMONS/(QUICK-BALANCE)-INCGROUP/28000 -> 9.147282818
V43: Green investment | W43: =100*(-INVTONNES/(QUICK-BALANCE)) -> 26.38293533
V44: Government and industry | W44: =100*MASS/(QUICK-BALANCE) -> 31.23841016
